bitfinex/quotes_ETHUSD_20250328
["timestamp","ask_amount","ask_price","bid_price","bid_amount"]
[1743166939364,5.99595547,1887.6,1887.2,5.29875]
[1743166939553,11.29376547,1887.6,1887.2,10.59741]
[1743166939754,5.99595547,1887.9,1887.6,5.29769]
[1743166939953,0.59959555,1887.8,1887.6,5.29769]
[1743166940379,0.59959555,1887.8,1887.5,6.63677]
[1743166940681,5.89677555,1887.8,1887.5,1.3389]
[1743166940859,5.29767,1887.7,1887.3,5.29855]
[1743166941060,5.29802,1887.5,1887.1,5.29913]
[1743166942271,13.07241247,1887.6,1887.1,5.29913]
[1743166942476,13.07241247,1887.6,1887.2,5.29872]
[1743166942749,5.29802,1887.5,1887.2,5.29872]
[1743166943423,5.29802,1887.5,1887.1,5.29904]
[1743166943603,0.529802,1887.4,1887.1,5.29904]
[1743166943930,0.529802,1887.4,1887.1,5.29897]
[1743166944926,5.828102,1887.4,1887.1,5.29897]
[1743166945129,0.529802,1887.4,1887.1,10.59793]
[1743166945314,0.529802,1887.4,1887.2,5.29882]
[1743166945928,0.529802,1887.4,1887.3,5.29857]
[1743166946130,5.99595547,1887.6,1887.4,5.29812]
[1743166946287,5.99595547,1887.6,1887.4,10.59622]
[1743166946808,5.99595547,1887.6,1887.1,2.65833349]
[1743166946983,5.99595547,1887.6,1887.3,5.29838]
[1743166947183,12.95286402,1887.6,1887.2,5.29877]
[1743166947433,5.29848,1887.4,1887.0,28.023]
[1743166947731,5.29896,1887.2,1887.0,28.023]
[1743166948803,5.29896,1887.2,1886.8,5.29981]
[1743166948989,0.529896,1887.1,1886.8,5.29981]
[1743166949190,0.529896,1887.1,1886.9,5.29966]
[1743166950010,5.29887,1887.2,1886.9,5.29966]
[1743166950342,10.59742,1887.3,1886.9,5.29966]
[1743166950503,5.29907,1887.2,1886.8,5.29993]
[1743166950702,10.59814,1887.2,1886.8,5.29993]
[1743166950907,1.059814,1887.1,1886.8,5.29993]
[1743166951109,1.059814,1887.1,1886.8,5.29981]
[1743166951323,5.29859,1887.3,1886.9,5.29949]
[1743166951636,5.29859,1887.3,1887.0,5.29941]
[1743166951840,5.99595547,1887.4,1887.3,5.29857]
[1743166952044,5.99595547,1887.4,1887.1,6.61808]
[1743166952337,11.29427547,1887.4,1887.1,1.319]
[1743166952541,1.12942755,1887.3,1887.1,1.319]
[1743166952835,1.12942755,1887.3,1887.0,5.29925]
[1743166952999,5.29895,1887.2,1886.8,5.29997]
[1743166953206,7.70921755,1887.3,1886.9,5.29954]
[1743166953411,5.29895,1887.2,1886.8,5.29972]
[1743166953621,0.529895,1887.1,1886.8,5.29972]
[1743166954728,0.529895,1887.1,1886.7,9.97275407]
[1743166954931,11.72677755,1887.3,1886.9,5.29943]
[1743166955147,5.29892,1887.2,1886.9,5.29943]
[1743166955716,6.42803755,1887.3,1887.0,5.29941]
[1743166956049,1.12942755,1887.3,1887.0,10.59867]
[1743166956210,1.12942755,1887.3,1887.1,5.29891]
[1743166956411,5.99595547,1887.4,1887.2,5.29885]
[1743166956607,5.99595547,1887.4,1887.3,5.29857]
[1743166957006,5.99595547,1887.4,1887.3,7.95690349]
[1743166957604,5.99595547,1887.4,1887.3,8.34827118]
[1743166958844,5.99595547,1887.9,1887.3,8.34818118]
[1743166959045,5.99595547,1887.9,1887.7,5.29726]
[1743166959339,6.72422102,1887.9,1887.7,5.29726]
[1743166959535,6.72422102,1887.9,1887.8,5.29717]
[1743166959743,1.3273,1888.3,1888.0,5.29646]
[1743166960063,6.62323,1888.3,1887.9,5.2967]
[1743166960457,1.3273,1888.3,1887.9,5.2967]
[1743166960661,6.62317,1888.3,1887.9,5.29669]
[1743166960865,6.62317,1888.3,1887.9,10.5934]
[1743166961162,8.41463155,1888.3,1888.0,5.29655]
[1743166961357,8.41463155,1888.3,1887.9,10.59345]
[1743166961563,8.41463155,1888.3,1887.9,10.59341]
[1743166961763,8.41463155,1888.3,1887.9,10.59342]
[1743166961973,8.41463155,1888.3,1888.0,5.29657]
[1743166962142,8.41463155,1888.3,1887.9,5.29669]
[1743166962353,5.29607,1888.2,1887.9,5.29669]
[1743166962542,8.41463155,1888.3,1888.0,10.59287]
[1743166962543,3.11876155,1888.3,1888.0,10.59287]
[1743166962747,5.99595547,1888.4,1888.1,5.29629]
[1743166963370,5.99595547,1888.4,1888.2,5.29589]
[1743166963936,5.99595547,1888.4,1888.1,5.2962]
[1743166964161,5.99595547,1888.4,1888.1,5.29618]
[1743166964680,5.99595547,1888.4,1888.2,5.29593]
[1743166965261,5.99595547,1888.4,1888.1,5.29618]
[1743166965466,5.99595547,1888.4,1888.1,5.29608]
[1743166965666,5.99595547,1888.4,1888.2,5.29602]
[1743166966457,5.99595547,1888.4,1888.1,5.29608]
[1743166966662,13.70758302,1888.4,1887.9,10.59358]
[1743166966865,5.29587,1888.3,1888.0,5.29658]
[1743166967370,10.59182,1888.3,1887.9,5.2967]
[1743166967563,5.29587,1888.3,1888.0,5.2966]
[1743166967946,12.57848547,1888.4,1888.0,5.29643]
[1743166968147,19.13200402,1888.4,1888.0,5.29643]
[1743166968360,5.29582,1888.3,1888.0,5.29643]
[1743166968555,10.59182,1888.3,1887.9,5.29679]
[1743166968864,5.29582,1888.3,1887.9,5.29674]
[1743166969049,10.59177,1888.3,1887.9,5.29674]
[1743166969254,5.99595547,1888.4,1887.9,7.95522349]
[1743166969454,5.99595547,1888.4,1888.2,5.29596]
[1743166969793,11.29146547,1888.4,1888.1,5.2963]
[1743166970086,5.29579,1888.3,1888.0,5.29659]
[1743166970288,5.29645,1888.1,1887.8,5.641]
[1743166970582,10.593,1888.1,1887.8,5.641]
[1743166970879,6.49244,1888.1,1887.8,5.641]
[1743166971081,1.19599,1888.1,1887.5,10.99076956]
[1743166971249,5.29701,1887.9,1887.5,10.99076956]
[1743166971453,5.29701,1887.9,1887.5,10.99074956]
[1743166971952,5.29701,1887.9,1887.5,10.59564]
[1743166972352,5.29701,1887.9,1887.3,2.65833349]
[1743166972353,1.2244,1887.8,1887.3,5.64]
[1743166972578,10.59532,1887.7,1887.3,10.93845]
[1743166972785,5.29761,1887.7,1887.3,10.93845]
[1743166973489,5.29818,1887.5,1887.3,5.64]
[1743166973690,5.29776,1887.6,1887.3,5.64]
[1743166974287,6.52161,1887.8,1887.4,5.29828]
[1743166974451,5.99595547,1887.9,1887.5,5.29779]
[1743166974657,7.25385547,1888.2,1887.7,2.65833349]
[1743166974977,5.29672,1888.0,1887.7,5.29739]
[1743166975558,5.29649,1888.1,1887.8,5.29713]
[1743166975886,12.55008547,1888.2,1887.8,5.29713]
[1743166976091,13.86039456,1888.2,1887.8,10.59407]
[1743166976383,5.29634,1888.1,1887.8,5.29694]
[1743166976686,5.29672,1888.0,1887.6,5.29753]
[1743166976888,5.29635,1888.1,1887.8,5.29714]
[1743166977691,10.59287,1888.1,1887.7,5.29732]
[1743166977891,13.86038456,1888.2,1887.8,5.29708]
[1743166978481,5.29646,1888.1,1887.8,5.29708]
[1743166978682,5.29646,1888.1,1887.7,5.29741]
[1743166978988,8.56419456,1888.2,1887.9,5.29687]
[1743166979188,5.99595547,1888.2,1887.9,10.59363]
[1743166979392,11.29201547,1888.2,1887.9,5.29676]
[1743166979593,5.99595547,1888.2,1887.9,10.5935]
[1743166979770,5.99595547,1888.2,1888.0,6.62407]
[1743166980095,0.5532621,1888.3,1888.1,5.29632]
[1743166980290,5.29562,1888.4,1888.0,6.62409]
[1743166980593,11.29117547,1888.5,1888.1,10.5923]
[1743166980794,11.29117547,1888.5,1888.2,5.29599]
[1743166981693,1.3147,1888.7,1888.3,0.05295653]
[1743166981988,5.99595547,1888.9,1888.5,5.29495]
[1743166981989,12.57147547,1888.9,1888.5,5.29495]
[1743166982189,5.99595547,1888.9,1888.7,5.29464]
[1743166982399,5.99595547,1889.1,1888.8,5.29422]
[1743166982693,5.29394,1889.0,1888.6,5.2948]
[1743166982990,5.29438,1888.8,1888.5,5.29505]
[1743166983397,10.58839,1888.9,1888.5,5.29505]
[1743166983592,10.58843,1888.9,1888.5,5.29505]
[1743166983908,7.596163,1888.8,1888.4,17.48703]
[1743166984096,2.301643,1888.8,1888.5,5.29519]
[1743166984297,2.301643,1888.8,1888.4,12.19157]
[1743166984499,1.2428,1888.8,1888.4,12.19157]
[1743166984714,6.53726,1888.8,1888.4,11.84889]
[1743166984900,1.2428,1888.8,1888.5,5.29519]
[1743166985209,10.1880692,1889.0,1888.6,5.2949]
[1743166985504,3.5531592,1889.0,1888.8,5.29425]
[1743166985686,3.5531592,1889.0,1888.4,1.2583]
[1743166985687,3.5531592,1889.0,1888.7,5.29455]
[1743166985887,8.8469592,1889.0,1888.6,5.29474]
[1743166986089,6.57641,1888.9,1888.5,5.29516]
[1743166986407,5.29447,1888.8,1888.4,6.55368]
[1743166986583,5.29479,1888.7,1888.3,10.93273]
[1743166986773,10.58961,1888.7,1888.3,10.93254]
[1743166986974,5.29437,1888.8,1888.4,5.29545]
[1743166987195,5.952027,1888.8,1888.4,5.29532]
[1743166987408,5.952027,1888.8,1888.5,5.29511]
[1743166988297,5.29477,1888.7,1888.4,5.29532]
[1743166988488,10.58962,1888.7,1888.3,10.93276]
[1743166988687,5.29477,1888.7,1888.3,16.22839]
[1743166988884,5.952047,1888.8,1888.4,5.29528]
[1743166989200,5.8898847,1888.7,1888.3,10.93259]
[1743166989510,11.1847147,1888.7,1888.3,5.29559]
[1743166990223,11.1847147,1888.7,1888.3,10.59121]
[1743166990224,5.8898847,1888.7,1888.3,10.59121]
[1743166990513,5.8898847,1888.7,1888.4,5.29546]
[1743166990688,0.5952047,1888.7,1888.4,10.59082]
[1743166990889,1.2822,1888.9,1888.2,12.25027]
[1743166991089,0.5531592,1889.0,1888.9,5.29408]
[1743166991506,1.2796,1889.3,1888.8,6.54373]
[1743166991704,6.57258,1889.3,1888.9,5.29405]
[1743166991905,5.29336,1889.2,1888.9,5.29405]
[1743166992289,7.529838,1889.3,1888.9,5.29408]
[1743166992493,5.29335,1889.2,1888.9,5.29398]
[1743166992731,7.529908,1889.3,1888.9,10.58792]
[1743166993112,6.250308,1889.3,1889.0,5.29379]
[1743166993530,7.24135547,1889.5,1888.9,5.29394]
[1743166993531,5.99595547,1889.5,1889.1,0.05293632]
[1743166993832,5.99595547,1889.5,1889.3,5.29294]
[1743166993994,5.99595547,1889.5,1889.2,11.883]
[1743166994195,5.99595547,1889.5,1889.3,5.29292]
[1743166994604,5.99595547,1889.5,1889.2,6.59011]
[1743166994932,17.70982502,1889.5,1889.1,5.2934]
[1743166995133,12.41724502,1889.5,1889.1,10.58677]
[1743166995341,12.41724502,1889.5,1889.1,5.29337]
[1743166995640,5.2928,1889.4,1889.0,5.633]
[1743166995836,5.2928,1889.4,1889.0,10.9267]
[1743166995990,12.41718502,1889.5,1889.1,5.2933]
[1743166996193,0.55283421,1889.3,1889.2,5.29324]
[1743166996633,0.55283421,1889.3,1889.1,5.29343]
[1743166996806,5.29269,1889.4,1889.1,5.29343]
[1743166997237,5.29309,1889.3,1889.0,5.631]
[1743166997403,7.123809,1889.3,1888.9,5.29386]
[1743166997604,3.0,1889.4,1889.1,10.58681]
[1743166997808,12.58989547,1889.5,1889.1,10.58681]
[1743166998323,17.88254547,1889.5,1889.1,5.29329]
[1743166998534,17.88254547,1889.5,1888.7,6.63489]
[1743166998535,4.00463349,1889.3,1888.4,1.2172]
[1743166998841,4.3463,1888.9,1888.4,1.2172]
[1743166998994,3.0,1888.7,1888.0,6.53872]
[1743166999196,5.29539,1888.5,1888.1,10.59251]
[1743166999430,5.29494,1888.6,1888.2,5.29595]
[1743166999625,5.29532,1888.5,1888.1,10.59246]
[1743166999832,5.29532,1888.5,1888.1,10.59233]
[1743167000027,5.29553,1888.4,1888.1,6.479623]
[1743167000327,6.57874,1888.5,1888.1,6.479743]
[1743167000797,5.29495,1888.6,1888.2,5.3488658]
[1743167000997,10.59008,1888.6,1888.2,5.29591]
[1743167001407,5.99595547,1888.7,1888.4,5.29532]
[1743167001601,5.29455,1888.8,1888.5,1.3369]
[1743167001791,5.29455,1888.8,1888.3,5.63]
[1743167001792,5.29518,1888.6,1888.3,5.63]
[1743167002107,5.29513,1888.6,1888.3,5.63]
[1743167002310,8.29445,1888.8,1888.4,0.05295215]
[1743167002608,13.58903,1888.8,1888.4,5.29537]
[1743167002803,5.29468,1888.7,1888.4,5.29537]
[1743167003496,5.29468,1888.7,1888.3,5.63]
[1743167003696,5.29502,1888.6,1888.3,5.63]
[1743167003896,3.0,1888.8,1888.3,10.92565]
[1743167003897,5.29467,1888.7,1888.3,10.92565]
[1743167004111,5.29467,1888.7,1888.3,17.447505]
[1743167004727,5.29531,1888.5,1888.3,5.63]
[1743167004932,10.59072,1888.5,1888.3,5.63]
[1743167005529,10.59018,1888.6,1888.3,5.63]
[1743167005919,5.29506,1888.6,1888.3,5.63]
[1743167006093,5.29506,1888.6,1888.3,10.92573]
[1743167006301,5.29472,1888.7,1888.3,10.92573]
[1743167006606,5.99595547,1888.9,1888.6,5.29467]
[1743167006931,11.29006547,1888.9,1888.5,5.29507]
[1743167007130,5.29438,1888.8,1888.5,5.29507]
[1743167007503,11.29006547,1888.9,1888.5,10.59008]
[1743167007703,16.58436547,1888.9,1888.5,5.29501]
[1743167007932,5.29439,1888.8,1888.5,5.29501]
[1743167009132,5.99595547,1888.9,1888.5,6.354078]
[1743167009335,11.29013547,1888.9,1888.6,6.5356]
[1743167011133,5.99595547,1888.9,1888.6,11.8304]
[1743167011329,5.99595547,1888.9,1888.6,11.83038]
[1743167011530,5.99595547,1888.9,1888.6,6.53558]
[1743167011905,5.99595547,1888.9,1888.7,5.29463]
[1743167012234,5.99595547,1888.9,1888.8,10.92236]
[1743167012441,3.0,1889.2,1888.9,6.56541]
[1743167012646,3.0,1889.2,1889.0,5.29366]
[1743167013307,5.29249,1889.5,1888.9,1.2715]
[1743167013511,5.29249,1889.5,1889.1,5.2933]
[1743167013843,5.29249,1889.5,1889.1,5.82263]
[1743167013844,5.29269,1889.4,1889.1,5.82263]
[1743167014642,5.29269,1889.4,1889.1,0.52933]
[1743167014836,5.29309,1889.3,1889.0,5.29371]
[1743167015008,5.29269,1889.4,1888.9,6.56547]
[1743167015210,10.58556,1889.4,1889.0,5.29368]
[1743167015419,5.29268,1889.5,1888.9,1.2715]
[1743167015634,5.29329,1889.2,1888.8,10.92221]
[1743167015837,5.29329,1889.2,1888.8,18.07889454]
[1743167016345,5.29385,1889.0,1888.8,7.49045454]
[1743167016536,5.29369,1889.1,1888.8,5.628]
[1743167016732,5.29369,1889.1,1888.8,10.92235]
[1743167017652,5.29329,1889.2,1888.8,10.92225]
[1743167017856,11.28893547,1889.3,1888.9,5.29393]
[1743167018157,5.99595547,1889.3,1889.1,1.2194]
[1743167018358,5.29324,1889.2,1888.9,5.29399]
[1743167018561,5.29324,1889.2,1888.8,17.43594]
[1743167018863,5.29353,1889.1,1888.8,6.5136]
[1743167019034,5.29324,1889.2,1888.8,13.72299066]
[1743167019231,5.29324,1889.2,1888.8,8.37585354]
[1743167019624,5.29324,1889.2,1888.8,8.42878066]
[1743167019823,5.99595547,1889.3,1889.0,5.29362]
[1743167020248,5.99595547,1889.3,1889.2,5.29324]
[1743167020458,16.58096547,1889.5,1889.2,1.2253]
[1743167020653,5.29268,1889.4,1889.2,1.2253]
[1743167021162,5.99595547,1889.5,1889.2,6.51851]
[1743167021551,11.28838547,1889.5,1889.2,1.2253]
[1743167021773,11.28838547,1889.5,1889.2,6.51853]
[1743167022139,5.99595547,1889.5,1889.2,12.992782]
[1743167022360,5.99595547,1889.5,1889.3,5.29294]
[1743167023073,5.3413,1889.9,1889.5,5.29217]
[1743167023437,5.2916,1889.8,1889.4,10.58519]
[1743167023653,5.2916,1889.8,1889.4,10.58509]
[1743167023867,5.2916,1889.8,1889.4,11.643599]
[1743167024675,10.63276,1889.9,1889.5,5.29228]
[1743167025185,5.29161,1889.8,1889.5,5.29228]
[1743167025393,5.29161,1889.8,1889.4,6.351169]
[1743167025548,10.63278,1889.9,1889.5,5.29228]
[1743167027702,5.29157,1889.8,1889.5,5.29228]
[1743167028708,5.34131,1889.9,1889.5,10.58447]
[1743167029016,10.63278,1889.9,1889.5,10.58447]
[1743167029166,10.63279,1889.9,1889.5,5.29214]
[1743167029362,5.34131,1889.9,1889.5,5.29214]
[1743167029801,5.34131,1889.9,1889.6,1.2638]
[1743167029998,0.05,1889.9,1889.6,1.2638]
[1743167030174,5.34132,1889.9,1889.6,6.55579]
[1743167030363,10.6328,1889.9,1889.6,1.2638]
[1743167030568,5.29187,1889.7,1889.4,6.47879]
[1743167031287,0.05,1889.9,1889.6,5.30955506]
[1743167031472,0.05,1889.9,1889.8,3.89117753]
[1743167031672,0.05,1889.9,1889.8,1.2364]
[1743167031872,0.05,1889.9,1889.7,5.621]
[1743167032778,5.34139,1889.9,1889.7,5.621]
[1743167032975,5.34139,1889.9,1889.6,5.29211]
[1743167033789,0.05,1889.9,1889.6,10.58394]
[1743167034100,0.05,1889.9,1889.6,5.29197]
[1743167034300,0.05,1889.9,1889.6,5.29196]
[1743167034797,0.05,1889.9,1889.8,7.94633753]
[1743167034989,0.05,1889.9,1889.8,9.21153753]
[1743167036374,0.05,1889.9,1889.8,6.55676]
[1743167040191,0.05,1889.9,1889.8,9.21153753]
[1743167040899,0.05,1889.9,1889.7,5.29184]
[1743167041088,0.584109,1889.9,1889.5,34.51607]
[1743167041406,5.29165,1889.8,1889.5,34.51607]
[1743167042119,6.55754,1889.7,1889.5,27.984]
[1743167043704,0.05,1889.9,1889.7,5.29171]
[1743167043885,0.05,1889.9,1889.8,2.65477753]
[1743167044085,0.05,1889.9,1889.7,6.51311]
[1743167044309,0.05,1889.9,1889.7,13.25083775]
[1743167044607,0.05,1889.9,1889.7,2.66739775]
[1743167044808,0.05,1889.9,1889.6,5.29211]
[1743167045304,0.05,1889.9,1889.6,10.58413]
[1743167045507,0.05,1889.9,1889.7,5.29166]
[1743167047178,0.05,1889.9,1889.6,10.58411]
[1743167047380,0.05,1889.9,1889.6,5.29203]
[1743167047710,0.05,1889.9,1889.6,5.29194]
[1743167049420,5.34132,1889.9,1889.6,5.29194]
[1743167049921,5.34132,1889.9,1889.5,34.49775]
[1743167050082,5.29167,1889.8,1889.5,33.599]
[1743167050484,5.29167,1889.8,1889.5,5.615]
[1743167050736,5.29167,1889.8,1889.5,10.90738]
[1743167051714,5.34132,1889.9,1889.5,16.19959]
[1743167051886,6.704555,1889.9,1889.5,16.19959]
[1743167052620,11.996005,1889.9,1889.5,10.90721]
[1743167053120,5.29164,1889.8,1889.5,10.90721]
[1743167053341,6.50291,1889.7,1889.5,5.615]
[1743167053617,1.211,1889.7,1889.5,5.615]
[1743167054511,6.50284,1889.7,1889.5,5.615]
[1743167058453,1.211,1889.7,1889.5,5.615]
[1743167058637,5.29185,1889.7,1889.5,5.615]
[1743167058924,2.658635,1889.9,1889.6,5.29205]
[1743167058925,0.05,1889.9,1889.6,5.29205]
[1743167059119,0.05,1889.9,1889.6,5.29199]
[1743167059824,0.05,1889.9,1889.7,5.29174]
[1743167060133,0.05,1889.9,1889.6,5.29199]
[1743167060134,5.34132,1889.9,1889.6,5.29199]
[1743167060805,10.63278,1889.9,1889.6,5.29199]
[1743167061122,5.29169,1889.8,1889.5,10.90735]
[1743167061526,5.29169,1889.8,1889.5,5.615]
[1743167061819,5.29169,1889.8,1889.5,10.90738]
[1743167062022,7.30415355,1889.9,1889.6,5.29204]
[1743167062751,12.59566355,1889.9,1889.5,10.90731]
[1743167063055,5.29158,1889.8,1889.5,10.90727]
[1743167063849,7.30415355,1889.9,1889.5,16.19957]
[1743167064033,7.30415355,1889.9,1889.6,5.29209]
[1743167064355,12.59560355,1889.9,1889.6,5.29209]
[1743167064520,7.30415355,1889.9,1889.6,5.29198]
[1743167064719,5.34128,1889.9,1889.6,5.29198]
[1743167065256,10.63278,1889.9,1889.5,10.90734]
[1743167065964,5.34128,1889.9,1889.5,16.19966]
[1743167066261,5.34128,1889.9,1889.6,5.29211]
[1743167066653,10.63273,1889.9,1889.5,10.90732]
[1743167066954,5.34128,1889.9,1889.6,5.292]
[1743167067151,5.34128,1889.9,1889.5,12.527255]
[1743167067152,5.29161,1889.8,1889.5,12.527255]
[1743167067455,5.29161,1889.8,1889.5,5.615]
[1743167067758,5.29161,1889.8,1889.5,10.9073]
[1743167067961,5.3413,1889.9,1889.6,5.29203]
[1743167068126,5.3413,1889.9,1889.5,10.9073]
[1743167068446,5.3413,1889.9,1889.6,5.29204]
[1743167068837,1.2039,1889.8,1889.4,5.29256]
[1743167069038,5.29269,1889.4,1889.1,40.08227]
[1743167069225,5.29263,1889.5,1889.1,45.37566]
[1743167069553,5.99595547,1889.6,1889.3,5.29287]
[1743167069855,5.99595547,1889.6,1889.3,5.29285]
[1743167070067,11.28809547,1889.6,1889.3,5.29285]
[1743167071556,5.99595547,1889.6,1889.3,5.29285]
[1743167071867,11.28817547,1889.6,1889.3,5.29285]
[1743167074079,5.99595547,1889.6,1889.3,10.58566]
[1743167074370,5.99595547,1889.6,1889.4,5.29263]
[1743167074866,5.99595547,1889.6,1889.4,5.29265]
[1743167075357,11.28810547,1889.6,1889.3,5.29281]
[1743167075730,5.99595547,1889.6,1889.4,5.2926]
[1743167075974,5.99595547,1889.6,1889.4,5.29267]
[1743167076171,5.99595547,1889.6,1889.3,11.64426]
[1743167076470,11.28809547,1889.6,1889.3,6.35141]
[1743167076781,5.99595547,1889.6,1889.3,6.4043336]
[1743167077078,5.99595547,1889.6,1889.4,5.2925]
[1743167077692,2.01282655,1889.9,1889.4,5.2925]
[1743167077693,0.05,1889.9,1889.8,5.29156]
[1743167077861,0.05,1889.9,1889.7,10.90072]
[1743167078246,0.05,1889.9,1889.7,5.609]
[1743167078586,7.99592351,1889.9,1889.7,5.609]
[1743167078953,5.29156,1889.8,1889.7,5.609]
[1743167079280,10.63285,1889.9,1889.7,5.609]
[1743167079446,10.63284,1889.9,1889.7,5.609]
[1743167079842,6.50718,1889.7,1889.3,6.48009]
[1743167080047,11.79923,1889.7,1889.3,10.90079]
[1743167080274,6.50718,1889.7,1889.3,10.90079]
[1743167080484,5.29214,1889.6,1889.3,10.90079]
[1743167083960,5.29242,1889.5,1889.3,5.608]
[1743167084161,5.29214,1889.6,1889.3,5.608]
[1743167084387,5.29214,1889.6,1889.3,10.90095]
[1743167084691,5.29268,1889.4,1889.1,35.60386291]
[1743167084845,5.29268,1889.4,1889.1,40.14846]
[1743167085276,5.29268,1889.4,1889.1,34.855]
[1743167085277,10.58559,1889.4,1889.1,34.855]
[1743167085683,5.29268,1889.4,1889.1,34.855]
[1743167085862,5.29268,1889.4,1889.1,40.14851]
[1743167088501,5.29268,1889.4,1889.1,34.855]
[1743167088785,5.29268,1889.4,1889.1,6.874]
[1743167089185,10.58553,1889.4,1889.1,6.874]
[1743167089486,5.29268,1889.4,1889.1,12.16752]
[1743167089681,5.29268,1889.4,1889.1,12.16738]
[1743167090559,5.29246,1889.5,1889.1,12.16735]
[1743167090758,6.50705,1889.7,1889.3,5.29281]
[1743167090959,5.2925,1889.5,1889.2,5.29324]
[1743167091294,5.29271,1889.4,1889.1,12.16729]
[1743167091495,10.58512,1889.5,1889.1,12.16729]
[1743167091704,5.29308,1889.3,1889.1,5.607]
[1743167091858,5.29336,1889.2,1888.9,6.8059]
[1743167092053,5.29364,1889.1,1888.7,1.2009]
[1743167092287,5.2942,1888.9,1888.5,12.16961]
[1743167092471,5.2942,1888.9,1888.5,6.5646]
[1743167092684,7.94888351,1888.8,1888.3,1.2695]
[1743167092878,0.91446135,1888.9,1888.3,1.2695]
[1743167092879,5.29508,1888.6,1888.4,5.605]
[1743167093055,7.94971351,1888.5,1888.2,27.986]
[1743167093404,7.95014351,1888.4,1888.2,27.986]
[1743167093561,5.29563,1888.4,1888.2,27.986]
[1743167094287,6.21263135,1888.5,1888.2,27.986]
[1743167094491,3.0,1888.6,1888.3,6.56114685]
[1743167094788,5.29467,1888.7,1888.4,5.29548]
[1743167095360,5.29467,1888.7,1888.3,6.50838]
[1743167095695,8.29465,1888.7,1888.4,5.29545]
[1743167095896,3.0,1888.7,1888.4,5.29545]
[1743167096282,3.0,1888.8,1888.4,5.95148004]
[1743167096601,5.99595547,1888.9,1888.6,5.29489]
[1743167096767,5.99595547,1888.9,1888.6,5.29479]
[1743167097095,5.99595547,1888.9,1888.6,5.29478]
[1743167097877,11.29006547,1888.9,1888.6,5.29478]
[1743167098076,16.58436547,1888.9,1888.5,5.29513]
[1743167098279,5.99595547,1888.9,1888.6,5.29486]
[1743167099182,11.29014547,1888.9,1888.5,6.980218]
[1743167099584,6.55497,1889.0,1888.6,5.29485]
[1743167099895,6.55497,1889.0,1888.7,5.29459]
[1743167100199,6.55497,1889.0,1888.6,5.29486]
[1743167100571,6.55497,1889.0,1888.6,6.5223798]
[1743167101099,6.55497,1889.0,1888.6,1.2275198]
[1743167101396,6.55493,1889.0,1888.6,5.29492]
[1743167101583,6.55493,1889.0,1888.7,5.29462]
[1743167101763,6.55493,1889.0,1888.6,5.29475]
[1743167102783,6.55493,1889.0,1888.6,10.58957]
[1743167102981,6.55493,1889.0,1888.5,1.685158]
[1743167102982,5.29411,1888.9,1888.5,6.980318]
[1743167103285,5.29411,1888.9,1888.5,5.29516]
[1743167103505,5.29464,1888.7,1888.4,10.90039]
[1743167103695,5.2944,1888.8,1888.4,10.90039]
[1743167103901,10.5884,1888.9,1888.5,5.29511]
[1743167104101,5.29411,1888.9,1888.5,5.29504]
[1743167104669,10.5884,1888.9,1888.5,5.29504]
[1743167104980,5.29437,1888.8,1888.5,5.29504]
[1743167105498,5.29475,1888.7,1888.4,5.605]
[1743167105701,1.2209,1888.6,1888.2,27.986]
[1743167105899,5.29535,1888.5,1888.2,27.986]
[1743167106200,10.5907,1888.5,1888.2,27.986]
[1743167106414,5.29535,1888.5,1888.2,27.986]
[1743167106819,10.59075,1888.5,1888.2,27.986]
[1743167106973,5.29555,1888.4,1888.2,27.986]
[1743167107173,5.29527,1888.5,1888.2,27.986]
[1743167107412,9.17037351,1888.6,1888.2,33.28194]
[1743167107712,11.81097,1888.6,1888.2,33.28194]
[1743167107914,6.51586,1888.6,1888.2,42.435669]
[1743167108212,6.51586,1888.6,1888.2,37.139729]
[1743167108710,5.29523,1888.5,1888.2,37.139729]
[1743167109413,5.99595547,1888.7,1888.4,5.29527]
[1743167109711,5.99595547,1888.7,1888.4,5.29533]
[1743167109876,5.99595547,1888.7,1888.4,5.29531]
[1743167110078,12.53195547,1888.7,1888.3,10.1834029]
[1743167110609,5.29497,1888.6,1888.3,9.0096029]
[1743167110976,5.29497,1888.6,1888.3,3.7139729]
[1743167111173,5.29497,1888.6,1888.2,33.28203]
[1743167111374,5.29526,1888.5,1888.2,33.28203]
[1743167111573,5.29497,1888.6,1888.2,33.28187]
[1743167112318,5.29497,1888.6,1888.3,5.29574]
[1743167113221,17.82672547,1888.7,1888.3,5.29574]
[1743167113530,7.23725547,1888.7,1888.4,5.29533]
[1743167113818,12.53192547,1888.7,1888.4,5.29533]
[1743167114515,17.82675547,1888.7,1888.3,9.153395]
[1743167114693,12.53192547,1888.7,1888.4,5.29548]
[1743167115132,5.99595547,1888.7,1888.5,5.29515]
[1743167115316,5.99595547,1888.7,1888.6,5.29492]
[1743167115633,5.29412,1888.9,1888.6,5.29492]
[1743167116798,10.58836,1888.9,1888.5,6.473913]
[1743167117129,11.28978547,1889.0,1888.7,5.29462]
[1743167117338,5.99595547,1889.0,1888.9,5.29408]
[1743167117491,7.14325547,1889.5,1888.9,4.34842151]
[1743167117817,12.43575547,1889.5,1889.1,5.29336]
[1743167118131,3.0,1889.4,1889.1,5.29333]
[1743167118333,3.0,1889.4,1889.2,5.29322]
[1743167118623,3.0,1889.4,1889.1,5.29333]
[1743167118794,8.2927,1889.4,1889.1,5.29333]
[1743167118998,5.2927,1889.4,1889.1,6.352039]
[1743167119523,7.07125393,1889.5,1889.2,5.29313]